fUSD/lending_fUSD_20250606
["ID","MTS","AMOUNT","RATE_DAILY","PERIOD"]
[364781104,1749240640471,-500.0,0.00027396,2]
[364781106,1749240640480,-632.00346149,0.00027396,2]
[364781108,1749240640491,-163.62461771,0.00027396,2]
[364781110,1749240640501,-500.0,0.00027397,2]
[364781112,1749240640510,-500.0,0.00027397,2]
[364781113,1749240640520,-500.0,0.00027397,2]
[364781115,1749240640529,-500.0,0.00027397,2]
[364781117,1749240640539,-500.0,0.00027397,2]
[364781119,1749240640547,-500.0,0.00027397,2]
[364781121,1749240640557,-500.0,0.00027397,2]
[364781123,1749240640567,-500.0,0.00027397,2]
[364781124,1749240640576,-500.0,0.00027397,2]
[364781126,1749240640585,-500.0,0.00027397,2]
[364781128,1749240640594,-500.0,0.00027397,2]
[364781130,1749240640603,-500.0,0.00027397,2]
[364781132,1749240640612,-500.0,0.00027397,2]
[364781134,1749240640621,-500.0,0.00027397,2]
[364781136,1749240640631,-500.0,0.00027397,2]
[364781138,1749240640640,-500.0,0.00027397,2]
[364781140,1749240640650,-500.0,0.00027397,2]
[364781142,1749240640659,-500.0,0.00027397,2]
[364781144,1749240640668,-368.78294685,0.00027397,2]
[364781146,1749240640679,-500.0,0.00027397,2]
[364781148,1749240640688,-500.0,0.00027397,2]
[364781150,1749240640697,-500.0,0.00027397,2]
[364781152,1749240640707,-500.0,0.00027397,2]
[364781154,1749240640717,-500.0,0.00027397,2]
[364781156,1749240640726,-500.0,0.00027397,2]
[364781158,1749240640735,-500.0,0.00027397,2]
[364781160,1749240640745,-500.0,0.00027397,2]
[364781162,1749240640755,-500.0,0.00027397,2]
[364781164,1749240640764,-500.0,0.00027397,2]
[364781166,1749240640774,-500.0,0.00027397,2]
[364781168,1749240640782,-377.25686835,0.00027397,2]
[364781169,1749240640791,-480.0,0.00027397,5]
[364781170,1749240640800,-480.0,0.00027397,5]
[364781171,1749240640809,-480.0,0.00027397,5]
[364781172,1749240640818,-480.0,0.00027397,5]
[364781173,1749240640827,-480.0,0.00027397,5]
[364781174,1749240640836,-480.0,0.00027397,5]
[364781175,1749240640847,-750.84,0.00027397,5]
[364781176,1749240640858,-480.0,0.00027397,5]
[364781177,1749240640867,-480.0,0.00027397,5]
[364781178,1749240640876,-480.0,0.00027397,5]
[364781179,1749240640885,-249.23324593,0.00027397,5]
[364781180,1749240640895,-496.58,0.00027397,5]
[364781181,1749240640904,-490.74532369,0.00027397,5]
[364781182,1749240640913,-480.0,0.00027397,5]
[364781183,1749240640923,-480.0,0.00027397,5]
[364781184,1749240640932,-480.0,0.00027397,5]
[364781185,1749240640941,-480.0,0.00027397,5]
[364781186,1749240640950,-480.0,0.00027397,5]
[364781187,1749240640961,-480.0,0.00027397,5]
[364781189,1749240640972,-480.0,0.00027397,5]
[364781191,1749240640982,-480.0,0.00027397,5]
[364781193,1749240640991,-494.17906345,0.00027397,5]
[364781195,1749240641001,-480.0,0.00027397,5]
[364781197,1749240641010,-1652.978713,0.00027397,5]
[364781199,1749240641019,-1324.98,0.00027397,5]
[364781201,1749240641029,-480.0,0.00027397,5]
[364781203,1749240641038,-794.21,0.00027397,5]
[364781205,1749240641047,-495.38243071,0.00027397,5]
[364781207,1749240641056,-622.3,0.00027397,5]
[364781209,1749240641066,-480.0,0.00027397,5]
[364781211,1749240641075,-480.0,0.00027397,5]
[364781213,1749240641085,-480.0,0.00027397,5]
[364781214,1749240641094,-480.0,0.00027397,5]
[364781216,1749240641103,-480.0,0.00027397,5]
[364781218,1749240641112,-480.0,0.00027397,5]
[364781221,1749240641122,-480.0,0.00027397,5]
[364781222,1749240641131,-480.0,0.00027397,5]
[364781224,1749240641141,-1568.13701,0.00027397,5]
[364781226,1749240641151,-480.0,0.00027397,5]
[364781229,1749240641160,-480.0,0.00027397,5]
[364781231,1749240641170,-486.75731355,0.00027397,5]
[364781232,1749240641179,-480.0,0.00027397,5]
[364781234,1749240641188,-480.0,0.00027397,5]
[364781236,1749240641197,-480.0,0.00027397,5]
[364781238,1749240641207,-480.0,0.00027397,5]
[364781240,1749240641216,-480.0,0.00027397,5]
[364781242,1749240641225,-470.98776095,0.00027397,5]
[364781244,1749240641234,-480.0,0.00027397,5]
[364781246,1749240641244,-480.0,0.00027397,5]
[364781248,1749240641253,-480.0,0.00027397,5]
[364781250,1749240641262,-481.92158103,0.00027397,5]
[364781252,1749240641271,-484.6400219,0.00027397,5]
[364781255,1749240641281,-480.0,0.00027397,5]
[364781256,1749240641291,-480.0,0.00027397,5]
[364781259,1749240641301,-480.0,0.00027397,5]
[364781260,1749240641310,-528.03379447,0.00027397,5]
[364781262,1749240641320,-480.0,0.00027397,5]
[364781264,1749240641331,-480.0,0.00027397,5]
[364781267,1749240641341,-480.0,0.00027397,5]
[364781269,1749240641351,-480.0,0.00027397,5]
[364781270,1749240641360,-480.0,0.00027397,5]
[364781272,1749240641369,-501.22796512,0.00027397,5]
[364781274,1749240641380,-480.0,0.00027397,5]
[364781276,1749240641389,-480.0,0.00027397,5]
[364781278,1749240641399,-484.36215884,0.00027397,5]
[364781280,1749240641410,-480.0,0.00027397,5]
[364781282,1749240641419,-480.0,0.00027397,5]
[364781284,1749240641428,-480.0,0.00027397,5]
[364781286,1749240641437,-338.86547354,0.00027397,5]
[364781288,1749240641446,-480.0,0.00027397,5]
[364781290,1749240641455,-876.11,0.00027397,5]
[364781292,1749240641464,-491.46711055,0.00027397,5]
[364781294,1749240641472,-483.11270371,0.00027397,5]
[364781296,1749240641481,-480.0,0.00027397,5]
[364781298,1749240641491,-480.0,0.00027397,5]
[364781300,1749240641500,-480.0,0.00027397,5]
[364781302,1749240641509,-480.0,0.00027397,5]
[364781304,1749240641518,-480.0,0.00027397,5]
[364781306,1749240641527,-483.68,0.00027397,5]
[364781307,1749240641536,-480.0,0.00027397,5]
[364781309,1749240641545,-480.0,0.00027397,5]
[364781312,1749240641555,-480.0,0.00027397,5]
[364781313,1749240641565,-499.06303799,0.00027397,5]
[364781315,1749240641573,-480.0,0.00027397,5]
[364781332,1749240641720,-480.0,0.00027397,5]
[364781335,1749240641740,-480.0,0.00027397,5]
[364781337,1749240641749,-480.0,0.00027397,5]
[364781339,1749240641758,-1200.7,0.00027397,5]
[364781341,1749240641767,-480.0,0.00027397,5]
[364781343,1749240641777,-480.0,0.00027397,5]
[364781345,1749240641786,-480.0,0.00027397,5]
[364781347,1749240641795,-480.0,0.00027397,5]
[364781349,1749240641804,-480.0,0.00027397,5]
[364781351,1749240641813,-480.0,0.00027397,5]
[364781353,1749240641822,-1839.33,0.00027397,5]
[364781355,1749240641831,-480.0,0.00027397,5]
[364781357,1749240641840,-478.72968721,0.00027397,5]
[364781359,1749240641849,-484.38374052,0.00027397,5]
[364781361,1749240641859,-480.0,0.00027397,5]
[364781363,1749240641870,-480.0,0.00027397,5]
[364781365,1749240641879,-480.0,0.00027397,5]
[364781367,1749240641888,-480.0,0.00027397,5]
[364781369,1749240641897,-480.0,0.00027397,5]
[364781371,1749240641907,-523.61,0.00027397,5]
[364781373,1749240641916,-480.0,0.00027397,5]
[364781375,1749240641925,-428.89377785,0.00027397,5]
[364781377,1749240641934,-480.0,0.00027397,5]
[364781379,1749240641944,-480.0,0.00027397,5]
[364781381,1749240641953,-480.0,0.00027397,5]
[364781383,1749240641962,-591.25431971,0.00027397,5]
[364781385,1749240641972,-480.0,0.00027397,5]
[364781387,1749240641981,-480.0,0.00027397,5]
[364781389,1749240641991,-418.80468656,0.00027397,5]
[364781391,1749240642000,-480.0,0.00027397,5]
[364781393,1749240642010,-480.0,0.00027397,5]
[364781395,1749240642019,-480.0,0.00027397,5]
[364781397,1749240642029,-482.75906997,0.00027397,5]
[364781399,1749240642038,-492.31792865,0.00027397,5]
[364781401,1749240642048,-480.0,0.00027397,5]
[364781403,1749240642057,-480.0,0.00027397,5]
[364781405,1749240642066,-480.0,0.00027397,5]
[364781407,1749240642075,-1161.32,0.00027397,5]
[364781409,1749240642084,-480.0,0.00027397,5]
[364781411,1749240642093,-480.0,0.00027397,5]
[364781413,1749240642102,-480.0,0.00027397,5]
[364781415,1749240642111,-496.7189745,0.00027397,5]
[364781417,1749240642120,-480.0,0.00027397,5]
[364781419,1749240642130,-554.77,0.00027397,5]
[364781420,1749240642139,-296.24357066,0.00027397,5]
[364781423,1749240642149,-1211.33,0.00027397,5]
[364781425,1749240642158,-480.0,0.00027397,5]
[364781426,1749240642167,-361.02996678,0.00027397,5]
[364781428,1749240642176,-521.28,0.00027397,5]
[364781431,1749240642186,-480.0,0.00027397,5]
[364781433,1749240642195,-492.47177423,0.00027397,5]
[364781435,1749240642204,-480.0,0.00027397,5]
[364781437,1749240642213,-485.10186756,0.00027397,5]
[364781439,1749240642222,-962.3,0.00027397,5]
[364781441,1749240642231,-480.0,0.00027397,5]
[364781443,1749240642240,-480.0,0.00027397,5]
[364781444,1749240642250,-491.92044498,0.00027397,5]
[364781447,1749240642259,-480.0,0.00027397,5]
[364781448,1749240642268,-604.82,0.00027397,5]
[364781450,1749240642277,-339.40009498,0.00027397,5]
[364781452,1749240642286,-501.5244694,0.00027397,5]
[364781455,1749240642296,-480.0,0.00027397,5]
[364781457,1749240642305,-170.34938031,0.00027397,5]
[364781459,1749240642314,-686.98,0.00027397,5]
[364781461,1749240642323,-591.75,0.00027397,5]
[364781464,1749240642337,-480.0,0.00027397,5]
[364781466,1749240642346,-542.2,0.00027397,5]
[364781468,1749240642355,-888.1,0.00027397,5]
[364781470,1749240642364,-472.13555142,0.00027397,5]
[364781472,1749240642375,-480.0,0.00027397,5]
[364781474,1749240642384,-480.0,0.00027397,5]
[364781477,1749240642394,-454.9211908,0.00027397,5]
[364781479,1749240642404,-480.0,0.00027397,5]
[364781480,1749240642414,-1083.72,0.00027397,5]
[364781482,1749240642423,-480.0,0.00027397,5]
[364781484,1749240642432,-480.0,0.00027397,5]
[364781486,1749240642442,-480.0,0.00027397,5]
[364781488,1749240642451,-522.45176201,0.00027397,5]
[364781490,1749240642460,-485.37750756,0.00027397,5]
[364781492,1749240642470,-500.29,0.00027397,5]
[364781494,1749240642479,-514.85598408,0.00027397,5]
[364781496,1749240642488,-512.82,0.00027397,5]
[364781498,1749240642499,-482.21640135,0.00027397,5]
[364781500,1749240642508,-480.0,0.00027397,5]
[364781502,1749240642517,-486.05339023,0.00027397,5]
[364781504,1749240642527,-895.73,0.00027397,5]
[364781506,1749240642536,-480.0,0.00027397,5]
[364781508,1749240642545,-221.5068644,0.00027397,5]
[364781510,1749240642554,-480.0,0.00027397,5]
[364781512,1749240642563,-480.0,0.00027397,5]
[364781514,1749240642573,-480.0,0.00027397,5]
[364781516,1749240642582,-838.49,0.00027397,5]
[364781518,1749240642591,-480.0,0.00027397,5]
[364781520,1749240642601,-563.02,0.00027397,5]
[364781523,1749240642610,-480.0,0.00027397,5]
[364781525,1749240642620,-483.18040379,0.00027397,5]
[364781527,1749240642629,-480.0,0.00027397,5]
[364781529,1749240642639,-422.24263036,0.00027397,5]
[364781531,1749240642649,-480.0,0.00027397,5]
[364781533,1749240642658,-484.51187732,0.00027397,5]
[364781535,1749240642669,-662.78,0.00027397,5]
[364781537,1749240642678,-638.27,0.00027397,5]
[364781539,1749240642687,-480.0,0.00027397,5]
[364781541,1749240642697,-480.0,0.00027397,5]
[364781543,1749240642706,-480.0,0.00027397,5]
[364781545,1749240642716,-480.0,0.00027397,5]
[364781547,1749240642726,-480.0,0.00027397,5]
[364781549,1749240642735,-425.80705989,0.00027397,5]
[364781551,1749240642744,-575.01,0.00027397,5]
[364781553,1749240642753,-480.0,0.00027397,5]
[364781555,1749240642762,-480.0,0.00027397,5]
[364781557,1749240642771,-480.0,0.00027397,5]
[364781559,1749240642780,-480.0,0.00027397,5]
[364781561,1749240642789,-480.0,0.00027397,5]
[364781563,1749240642799,-486.31721398,0.00027397,5]
[364781564,1749240642808,-459.61181471,0.00027397,5]
[364781566,1749240642817,-480.0,0.00027397,5]
[364781568,1749240642826,-480.0,0.00027397,5]
[364781570,1749240642836,-422.38132047,0.00027397,5]
[364781572,1749240642845,-480.0,0.00027397,5]
[364781574,1749240642854,-493.41407649,0.00027397,5]
[364781577,1749240642864,-480.0,0.00027397,5]
[364781578,1749240642874,-846.01,0.00027397,5]
[364781580,1749240642883,-480.0,0.00027397,5]
[364781583,1749240642893,-480.0,0.00027397,5]
[364781585,1749240642903,-480.0,0.00027397,5]
[364781587,1749240642912,-480.0,0.00027397,5]
[364781589,1749240642922,-480.0,0.00027397,5]
[364781590,1749240642931,-480.0,0.00027397,5]
[364781592,1749240642941,-480.0,0.00027397,5]
[364781594,1749240642950,-763.91,0.00027397,5]
[364781597,1749240642960,-480.0,0.00027397,5]
[364781599,1749240642969,-541.3,0.00027397,5]
[364781600,1749240642979,-480.0,0.00027397,5]
[364781603,1749240642989,-480.0,0.00027397,5]
[364781605,1749240642998,-527.72962559,0.00027397,5]
[364781607,1749240643008,-480.0,0.00027397,5]
[364781609,1749240643017,-480.0,0.00027397,5]
[364781611,1749240643026,-483.21197246,0.00027397,5]
[364781613,1749240643036,-486.47232307,0.00027397,5]
[364781615,1749240643045,-480.0,0.00027397,5]
[364781617,1749240643054,-480.0,0.00027397,5]
[364781619,1749240643063,-719.82,0.00027397,5]
[364781621,1749240643073,-480.0,0.00027397,5]
[364781623,1749240643082,-497.24578645,0.00027397,5]
[364781625,1749240643091,-393.18905018,0.00027397,5]
[364781627,1749240643100,-300.0,0.00027397,5]
[364781629,1749240643109,-480.0,0.00027397,5]
[364781630,1749240643119,-480.0,0.00027397,5]
[364781632,1749240643128,-480.0,0.00027397,5]
[364781634,1749240643137,-599.85,0.00027397,5]
[364781636,1749240643147,-484.04753327,0.00027397,5]
[364781639,1749240643156,-480.0,0.00027397,5]
[364781641,1749240643165,-480.0,0.00027397,5]
[364781643,1749240643174,-480.0,0.00027397,5]
[364781645,1749240643184,-486.02065922,0.00027397,5]
[364781647,1749240643193,-482.18690529,0.00027397,5]
[364781649,1749240643203,-480.0,0.00027397,5]
[364781651,1749240643212,-480.0,0.00027397,5]
[364781653,1749240643222,-480.0,0.00027397,5]
[364781655,1749240643231,-605.74,0.00027397,5]
[364781657,1749240643242,-480.0,0.00027397,5]
[364781659,1749240643251,-502.36948059,0.00027397,5]
[364781661,1749240643261,-480.0,0.00027397,5]
[364781663,1749240643270,-480.0,0.00027397,5]
[364781665,1749240643279,-480.0,0.00027397,5]
[364781667,1749240643288,-481.55726094,0.00027397,5]
[364781669,1749240643297,-392.66732608,0.00027397,5]
[364781671,1749240643307,-383.41112128,0.00027397,5]
[364781673,1749240643316,-500.0,0.00027397,5]
[364781675,1749240643325,-500.0,0.00027397,5]
[364781677,1749240643337,-500.0,0.00027397,5]
[364781679,1749240643347,-489.29238845,0.00027397,5]
[364781681,1749240643356,-813.85,0.00027397,5]
[364781683,1749240643365,-500.0,0.00027397,5]
[364781685,1749240643375,-480.0,0.00027397,5]
[364781686,1749240643384,-480.0,0.00027397,5]
[364781689,1749240643394,-480.0,0.00027397,5]
[364781691,1749240643403,-480.0,0.00027397,5]
[364781692,1749240643415,-480.0,0.00027397,5]
[364781695,1749240643425,-480.0,0.00027397,5]
[364781696,1749240643434,-1054.49,0.00027397,5]
[364781698,1749240643443,-606.93062687,0.00027397,5]
[364781700,1749240643452,-480.0,0.00027397,5]
[364781703,1749240643461,-500.0,0.00027397,5]
[364781704,1749240643472,-500.0,0.00027397,5]
[364781706,1749240643481,-426.90771548,0.00027397,5]
[364781708,1749240643490,-480.0,0.00027397,5]
[364781710,1749240643500,-992.55,0.00027397,5]
[364781712,1749240643509,-481.2423928,0.00027397,5]
[364781714,1749240643519,-480.0,0.00027397,5]
[364781717,1749240643529,-480.0,0.00027397,5]
[364781719,1749240643538,-480.0,0.00027397,5]
[364781720,1749240643547,-480.0,0.00027397,5]
[364781722,1749240643556,-503.35,0.00027397,5]
[364781724,1749240643566,-500.0,0.00027397,2]
[364781726,1749240643575,-500.0,0.00027397,2]
[364781728,1749240643585,-480.0,0.00027397,5]
[364781730,1749240643594,-480.0,0.00027397,5]
[364781732,1749240643603,-480.0,0.00027397,5]
[364781734,1749240643612,-480.0,0.00027397,5]
[364781736,1749240643621,-484.01917455,0.00027397,5]
[364781738,1749240643630,-1100.76,0.00027397,5]
[364781741,1749240643639,-480.0,0.00027397,5]
[364781743,1749240643649,-745.03,0.00027397,5]
[364781744,1749240643658,-480.0,0.00027397,5]
[364781745,1749240643667,-480.0,0.00027397,5]
[364781746,1749240643676,-480.0,0.00027397,5]
[364781747,1749240643685,-480.0,0.00027397,5]
[364781748,1749240643694,-480.0,0.00027397,5]
[364781749,1749240643703,-480.0,0.00027397,5]
[364781750,1749240643712,-480.0,0.00027397,5]
[364781751,1749240643722,-487.19512927,0.00027397,5]
[364781752,1749240643731,-480.0,0.00027397,5]
[364781753,1749240643740,-897.72,0.00027397,5]
[364781754,1749240643749,-480.0,0.00027397,5]
[364781756,1749240643758,-480.0,0.00027397,5]
[364781758,1749240643768,-480.0,0.00027397,5]
[364781760,1749240643778,-480.0,0.00027397,5]
[364781762,1749240643787,-485.58666464,0.00027397,5]
[364781764,1749240643796,-480.0,0.00027397,5]
[364781766,1749240643806,-480.0,0.00027397,5]
[364781768,1749240643815,-480.0,0.00027397,5]
[364781770,1749240643824,-480.0,0.00027397,5]
[364781772,1749240643833,-480.0,0.00027397,5]
[364781774,1749240643842,-486.25828105,0.00027397,5]
[364781776,1749240643851,-480.0,0.00027397,5]
[364781778,1749240643861,-480.0,0.00027397,5]
[364781780,1749240643871,-480.0,0.00027397,5]
[364781784,1749240643881,-480.0,0.00027397,5]
[364781788,1749240643890,-480.0,0.00027397,5]
[364781790,1749240643899,-480.0,0.00027397,5]
[364781792,1749240643909,-480.0,0.00027397,5]
[364781794,1749240643918,-564.05,0.00027397,5]
[364781796,1749240643927,-480.0,0.00027397,5]
[364781798,1749240643937,-929.97,0.00027397,5]
[364781800,1749240643946,-480.0,0.00027397,5]
[364781802,1749240643956,-480.0,0.00027397,5]
[364781804,1749240643965,-480.0,0.00027397,5]
[364781806,1749240643975,-480.0,0.00027397,5]
[364781808,1749240643984,-480.0,0.00027397,5]
[364781810,1749240643993,-480.0,0.00027397,5]
[364781812,1749240644002,-480.0,0.00027397,5]
[364781814,1749240644011,-480.0,0.00027397,5]
[364781816,1749240644020,-518.73575585,0.00027397,5]
[364781818,1749240644030,-480.0,0.00027397,5]
[364781820,1749240644040,-480.0,0.00027397,5]
[364781822,1749240644049,-480.0,0.00027397,5]
[364781824,1749240644059,-480.0,0.00027397,5]
[364781826,1749240644068,-485.40579763,0.00027397,5]
[364781828,1749240644077,-1379.52,0.00027397,5]
[364781830,1749240644086,-836.38,0.00027397,5]
[364781832,1749240644095,-480.0,0.00027397,5]
[364781834,1749240644105,-480.0,0.00027397,5]
[364781836,1749240644114,-499.91072532,0.00027397,5]
[364781838,1749240644123,-620.99055429,0.00027397,5]
[364781840,1749240644132,-480.0,0.00027397,5]
[364781842,1749240644141,-484.28061092,0.00027397,5]
[364781844,1749240644150,-480.0,0.00027397,5]
[364781846,1749240644159,-821.33,0.00027397,5]
[364781848,1749240644168,-859.78,0.00027397,5]
[364781850,1749240644178,-496.10760876,0.00027397,5]
[364781852,1749240644187,-561.45497211,0.00027397,5]
[364781854,1749240644196,-822.79,0.00027397,5]
[364781886,1749240644504,-480.0,0.00027397,5]
[364781889,1749240644520,-412.29498911,0.00027397,5]
[364781891,1749240644529,-494.9345283,0.00027397,5]
[364781893,1749240644539,-480.0,0.00027397,5]
[364781895,1749240644548,-480.0,0.00027397,5]
[364781897,1749240644558,-480.0,0.00027397,5]
[364781899,1749240644567,-739.06,0.00027397,5]
[364781901,1749240644576,-571.74,0.00027397,5]
[364781903,1749240644585,-480.0,0.00027397,5]
[364781905,1749240644594,-933.11,0.00027397,5]
[364781907,1749240644603,-946.76,0.00027397,5]
[364781908,1749240644612,-903.6,0.00027397,5]
[364781911,1749240644623,-478.87055813,0.00027397,5]
[364781912,1749240644632,-1739.78,0.00027397,5]
[364781914,1749240644641,-480.0,0.00027397,5]
[364781916,1749240644650,-1000.0,0.00027397,5]
[364781919,1749240644660,-351.15608023,0.00027397,5]
[364781920,1749240644669,-486.91190824,0.00027397,5]
[364781923,1749240644679,-1657.24,0.00027397,5]
[364781925,1749240644688,-480.0,0.00027397,5]
[364781926,1749240644697,-480.0,0.00027397,5]
[364781929,1749240644707,-655.02,0.00027397,5]
[364781931,1749240644719,-480.0,0.00027397,5]
[364781933,1749240644729,-245.92635034,0.00027397,5]
[364781935,1749240644739,-480.0,0.00027397,5]
[364781937,1749240644748,-480.0,0.00027397,5]
[364781939,1749240644757,-480.0,0.00027397,5]
[364781941,1749240644767,-567.59,0.00027397,5]
[364781943,1749240644777,-907.9,0.00027397,5]
[364781945,1749240644786,-485.50042967,0.00027397,5]
[364781946,1749240644796,-480.0,0.00027397,5]
[364781949,1749240644806,-480.0,0.00027397,5]
[364781950,1749240644815,-612.39,0.00027397,5]
[364781952,1749240644825,-480.0,0.00027397,5]
[364781954,1749240644834,-480.0,0.00027397,5]
[364781956,1749240644844,-480.0,0.00027397,5]
[364781958,1749240644853,-480.0,0.00027397,5]
[364781960,1749240644863,-908.3,0.00027397,5]
[364781962,1749240644872,-492.8597847,0.00027397,5]
[364781964,1749240644882,-480.0,0.00027397,5]
[364781966,1749240644891,-480.0,0.00027397,5]
[364781968,1749240644901,-542.99,0.00027397,5]
[364781970,1749240644910,-551.6,0.00027397,5]
[364781972,1749240644919,-480.0,0.00027397,5]
[364781974,1749240644928,-480.0,0.00027397,5]
[364781977,1749240644940,-1400.82,0.00027397,5]
[364781978,1749240644949,-555.32,0.00027397,5]
[364781980,1749240644958,-1538.47,0.00027397,5]
[364781983,1749240644970,-948.36,0.00027397,5]
[364781985,1749240644980,-480.0,0.00027397,5]
[364781987,1749240644989,-4609.26,0.00027397,5]
[364781989,1749240644999,-1296.25,0.00027397,5]
[364781991,1749240645009,-600.0,0.00027397,30]
[364781993,1749240645018,-2146.92,0.00027397,5]
[364781995,1749240645028,-535.92,0.00027397,5]
[364781997,1749240645037,-593.23,0.00027397,5]
[364781999,1749240645048,-480.0,0.00027397,5]
[364782001,1749240645058,-480.0,0.00027397,5]
[364782003,1749240645068,-480.0,0.00027397,5]
[364782005,1749240645077,-480.0,0.00027397,5]
[364782007,1749240645087,-3149.12801,0.00027397,2]
[364782009,1749240645096,-2734.62,0.00027397,5]
[364782011,1749240645105,-480.0,0.00027397,5]
[364782013,1749240645115,-480.0,0.00027397,5]
[364782015,1749240645124,-480.0,0.00027397,5]
[364782017,1749240645134,-1219.25,0.00027397,5]
[364782019,1749240645143,-538.08,0.00027397,5]
[364782021,1749240645152,-1046.07,0.00027397,5]
[364782023,1749240645162,-943.03,0.00027397,5]
[364782025,1749240645171,-480.0,0.00027397,5]
[364782027,1749240645181,-480.0,0.00027397,5]
[364782029,1749240645190,-480.0,0.00027397,5]
[364782031,1749240645199,-6544.08,0.00027397,5]
[364782033,1749240645210,-607.62,0.00027397,5]
[364782036,1749240645222,-480.0,0.00027397,5]
[364782037,1749240645232,-480.0,0.00027397,5]
[364782040,1749240645241,-7399.63,0.00027397,5]
[364782042,1749240645251,-924.07,0.00027397,5]
[364782044,1749240645261,-1789.68,0.00027397,5]
[364782046,1749240645271,-480.0,0.00027397,5]
[364782048,1749240645281,-810.49,0.00027397,5]
[364782050,1749240645290,-3373.75,0.00027397,5]
[364782052,1749240645300,-703.27,0.00027397,5]
[364782054,1749240645309,-1260.18,0.00027397,5]
[364782056,1749240645319,-902.21,0.00027397,5]
[364782058,1749240645329,-480.0,0.00027397,5]
[364782060,1749240645342,-819.99,0.00027397,5]
[364782062,1749240645352,-480.0,0.00027397,5]
[364782064,1749240645361,-1438.85,0.00027397,5]
[364782066,1749240645370,-480.0,0.00027397,5]
[364782068,1749240645381,-970.72,0.00027397,5]
[364782070,1749240645391,-1000.0,0.00027397,5]
[364782073,1749240645401,-755.4,0.00027397,5]
[364782075,1749240645413,-480.0,0.00027397,5]
[364782078,1749240645424,-57370.88,0.00027397,5]
[364782080,1749240645434,-1535.87,0.00027397,5]
[364782082,1749240645444,-480.0,0.00027397,5]
[364782085,1749240645454,-480.0,0.00027397,5]
[364782087,1749240645463,-2758.24,0.00027397,5]
[364782088,1749240645474,-480.0,0.00027397,5]
[364782091,1749240645484,-599.88,0.00027397,5]
[364782093,1749240645495,-676.46,0.00027397,5]
[364782095,1749240645506,-480.0,0.00027397,5]
[364782097,1749240645515,-1379.45,0.00027397,5]
[364782099,1749240645524,-480.0,0.00027397,5]
[364782101,1749240645534,-480.0,0.00027397,2]
[364782103,1749240645544,-2938.32,0.00027397,5]
[364782105,1749240645553,-949.92,0.00027397,5]
[364782107,1749240645562,-217.17476536,0.00027397,2]
[364782109,1749240645571,-520.51,0.00027397,5]
[364782111,1749240645581,-585.0452618,0.00027397,5]
[364782113,1749240645590,-3979.76,0.00027397,5]
[364782115,1749240645599,-500.0,0.00027397,2]
[364782117,1749240645609,-500.0,0.00027397,2]
[364782119,1749240645618,-500.0,0.00027397,2]
[364782121,1749240645627,-480.0,0.00027397,5]
[364782123,1749240645637,-1575.78,0.00027397,5]
[364782124,1749240645646,-480.0,0.00027397,5]